fUSD/lending_fUSD_20241207
["ID","MTS","AMOUNT","RATE_DAILY","PERIOD"]
[344541813,1733538662318,-766.7,0.00011775,2]
[344541814,1733538662328,-500.0,0.00011775,2]
[344541815,1733538662338,-500.0,0.00011775,2]
[344541816,1733538662349,-500.0,0.00011775,2]
[344541817,1733538662359,-567.01,0.00011775,2]
[344541818,1733538662369,-514.81,0.00011775,2]
[344541819,1733538662379,-500.0,0.00011775,2]
[344541820,1733538662389,-500.0,0.00011775,2]
[344541821,1733538662400,-657.0,0.00011775,2]
[344541822,1733538662410,-899.98,0.00011775,2]
[344541823,1733538662420,-500.0,0.00011775,2]
[344541824,1733538662430,-500.0,0.00011775,2]
[344541825,1733538662440,-790.04,0.00011775,2]
[344541826,1733538662450,-604.46,0.00011775,2]
[344541827,1733538662465,-618.41,0.00011775,2]
[344541828,1733538662477,-500.0,0.00011775,2]
[344541829,1733538662487,-500.0,0.00011775,2]
[344541830,1733538662497,-537.38,0.00011775,2]
[344541831,1733538662507,-500.0,0.00011775,2]
[344541832,1733538662521,-500.0,0.00011775,2]
[344541833,1733538662531,-521.67,0.00011775,2]
[344541834,1733538662541,-607.77,0.00011775,2]
[344541835,1733538662551,-500.0,0.00011775,2]
[344541836,1733538662561,-500.0,0.00011775,2]
[344541837,1733538662571,-603.18,0.00011775,2]
[344541838,1733538662581,-500.0,0.00011775,2]
[344541839,1733538662591,-647.48,0.00011775,2]
[344541840,1733538662602,-607.67,0.00011775,2]
[344541841,1733538662612,-691.8,0.00011775,2]
[344541842,1733538662623,-500.0,0.00011775,2]
[344541843,1733538662633,-500.0,0.00011775,2]
[344541844,1733538662643,-197.872004,0.00011775,2]
[344541845,1733538662652,-500.0,0.00011775,2]
[344541846,1733538662662,-500.0,0.00011775,2]
[344541847,1733538662673,-500.0,0.00011775,2]
[344541848,1733538662683,-500.0,0.00011775,2]
[344541849,1733538662693,-728.64,0.00011775,2]
[344541850,1733538662703,-500.0,0.00011775,2]
[344541851,1733538662716,-500.0,0.00011775,2]
[344541852,1733538662725,-500.0,0.00011775,2]
[344541853,1733538662736,-640.13,0.00011775,2]
[344541854,1733538662746,-500.0,0.00011775,2]
[344541855,1733538662757,-500.0,0.00011775,2]
[344541856,1733538662768,-1243.41,0.00011775,2]
[344541857,1733538662778,-500.0,0.00011775,2]
[344541858,1733538662787,-500.0,0.00011775,2]
[344541859,1733538662799,-500.0,0.00011775,2]
[344541860,1733538662810,-500.0,0.00011775,2]
[344541861,1733538662819,-500.0,0.00011775,2]
[344541862,1733538662828,-500.0,0.00011775,2]
[344541863,1733538662838,-535.81,0.00011775,2]
[344541864,1733538662847,-729.39,0.00011775,2]
[344541865,1733538662857,-500.0,0.00011775,2]
[344541866,1733538662866,-500.0,0.00011775,2]
[344541867,1733538662876,-993.22,0.00011775,2]
[344541868,1733538662886,-500.0,0.00011775,2]
[344541869,1733538662896,-559.72,0.00011775,2]
[344541870,1733538662905,-500.0,0.00011775,2]
[344541871,1733538662915,-500.0,0.00011775,2]
[344541872,1733538662925,-500.0,0.00011775,2]
[344541873,1733538662935,-500.0,0.00011775,2]
[344541874,1733538663204,-500.0,0.00011775,2]
[344541875,1733538663215,-500.0,0.00011775,2]
[344541876,1733538663226,-500.0,0.00011775,2]
[344541877,1733538663237,-500.0,0.00011775,2]
[344541878,1733538663247,-500.0,0.00011775,2]
[344541879,1733538663257,-500.0,0.00011775,2]
[344541880,1733538663267,-501.11758639,0.00011775,2]
[344541881,1733538663278,-617.62,0.00011775,2]
[344541882,1733538663288,-500.0,0.00011775,2]
[344541883,1733538663299,-500.0,0.00011775,2]
[344541884,1733538663309,-1318.28,0.00011775,2]
[344541885,1733538663319,-500.0,0.00011775,2]
[344541886,1733538663330,-742.57,0.00011775,2]
[344541887,1733538663340,-774.68,0.00011775,2]
[344541888,1733538663351,-500.0,0.00011775,2]
[344541889,1733538663362,-1979.9,0.00011775,2]
[344541890,1733538663372,-500.0,0.00011775,2]
[344541891,1733538663382,-500.0,0.00011775,2]
[344541892,1733538663392,-500.0,0.00011775,2]
[344541893,1733538663402,-500.0,0.00011775,2]
[344541894,1733538663411,-500.0,0.00011775,2]
[344541895,1733538663422,-846.08,0.00011775,2]
[344541896,1733538663433,-500.0,0.00011775,2]
[344541897,1733538663443,-500.0,0.00011775,2]
[344541898,1733538663453,-514.34,0.00011775,2]
[344541899,1733538663463,-500.0,0.00011775,2]
[344541900,1733538663473,-500.0,0.00011775,2]
[344541901,1733538663483,-500.0,0.00011775,2]
[344541902,1733538663493,-550.07,0.00011775,2]
[344541903,1733538663504,-522.22,0.00011775,2]
[344541904,1733538663513,-701.93,0.00011775,2]
[344541905,1733538663523,-500.0,0.00011775,2]
[344541906,1733538663534,-614.5,0.00011775,2]
[344541907,1733538663544,-500.0,0.00011775,2]
[344541908,1733538663554,-1144.35,0.00011775,2]
[344541909,1733538663565,-500.0,0.00011775,2]
[344541910,1733538663575,-500.0,0.00011775,2]
[344541911,1733538663585,-1041.71,0.00011775,2]
[344541912,1733538663595,-820.68,0.00011775,2]
[344541913,1733538663606,-631.36,0.00011775,2]
[344541914,1733538663617,-7329.42,0.00011775,2]
[344541915,1733538663628,-5670.47,0.00011775,2]
[344541916,1733538663639,-500.0,0.00011775,2]
[344541917,1733538663649,-500.0,0.00011775,2]
[344541918,1733538663659,-1820.83,0.00011775,2]
[344541919,1733538663669,-674.3,0.00011775,2]
[344541920,1733538663679,-1395.19,0.00011775,2]
[344541921,1733538663690,-500.0,0.00011775,2]
[344541922,1733538663700,-1929.61,0.00011775,2]
[344541923,1733538663716,-5538.23,0.00011775,2]
[344541924,1733538663728,-1023.74,0.00011775,2]
[344541925,1733538663739,-632.12151375,0.00011775,2]
[344541926,1733538663750,-567.73,0.00011775,2]
[344541927,1733538663764,-1242.16,0.00011775,2]
[344541928,1733538663774,-1210.15,0.00011775,2]
[344541929,1733538663785,-707.46,0.00011775,2]
[344541930,1733538663797,-500.0,0.00011775,2]
[344541931,1733538663807,-500.0,0.00011775,2]
[344541932,1733538663818,-887.11,0.00011775,2]
[344541933,1733538663828,-500.0,0.00011775,2]
[344541934,1733538663838,-889.28,0.00011775,2]
[344541935,1733538663848,-662.41,0.00011775,2]
[344541936,1733538663859,-500.0,0.00011775,2]
[344541937,1733538663869,-2834.98,0.00011775,2]
[344541938,1733538663879,-4185.18,0.00011775,2]
[344541939,1733538663891,-862.26,0.00011775,2]
[344541940,1733538663902,-788.23,0.00011775,2]
[344541941,1733538663913,-1314.55,0.00011775,2]
[344541942,1733538663923,-928.97,0.00011775,2]
[344541943,1733538663934,-828.3,0.00011775,2]
[344541944,1733538663944,-500.0,0.00011775,2]
[344541945,1733538663955,-576.01,0.00011775,2]
[344541946,1733538663965,-3211.95,0.00011775,2]
[344541947,1733538663975,-500.0,0.00011775,2]
[344541948,1733538663986,-751.12,0.00011775,2]
[344541949,1733538663996,-500.0,0.00011775,2]
[344541950,1733538664006,-500.0,0.00011775,2]
[344541951,1733538664016,-500.0,0.00011775,2]
[344541952,1733538664027,-3036.57,0.00011775,2]
[344541953,1733538664037,-500.0,0.00011775,2]
[344541954,1733538664047,-500.0,0.00011775,2]
[344541955,1733538664058,-1462.66,0.00011775,2]
[344541956,1733538664068,-587.23,0.00011775,2]
[344541957,1733538664080,-500.0,0.00011775,2]
[344541958,1733538664096,-500.0,0.00011775,2]
[344541959,1733538664106,-500.0,0.00011775,2]
[344541960,1733538664116,-500.0,0.00011775,2]
[344541961,1733538664126,-571.76,0.00011775,2]
[344541962,1733538664136,-752.19,0.00011775,2]
[344541963,1733538664145,-500.0,0.00011775,2]
[344541964,1733538664158,-500.0,0.00011775,2]
[344541965,1733538664171,-500.0,0.00011775,2]
[344541966,1733538664184,-737.56,0.00011775,2]
[344541967,1733538664194,-500.0,0.00011775,2]
[344541968,1733538664205,-500.0,0.00011775,2]
[344541969,1733538664215,-2841.72,0.00011775,2]
[344541970,1733538664226,-6067.72,0.00011775,2]
[344541971,1733538664236,-500.0,0.00011775,2]
[344541972,1733538664245,-500.0,0.00011775,2]
[344541973,1733538664255,-500.0,0.00011775,2]
[344541974,1733538664265,-500.0,0.00011775,2]
[344541975,1733538664275,-1421.56,0.00011775,2]
[344541976,1733538664285,-500.0,0.00011775,2]
[344541977,1733538664294,-638.59,0.00011775,2]
[344541978,1733538664304,-5832.05,0.00011775,2]
[344541979,1733538664314,-500.0,0.00011775,2]
[344541980,1733538664324,-715.09,0.00011775,2]
[344541981,1733538664334,-4366.17,0.00011775,2]
[344541982,1733538664344,-939.44,0.00011775,2]
[344541983,1733538664354,-1045.16,0.00011775,2]
[344541984,1733538664365,-617.55,0.00011775,2]
[344541985,1733538664375,-500.0,0.00011775,2]
[344541986,1733538664385,-500.0,0.00011775,2]
[344541987,1733538664396,-1873.96,0.00011775,2]
[344541988,1733538664406,-792.25,0.00011775,2]
[344541989,1733538664417,-500.0,0.00011775,2]
[344541990,1733538664428,-817.0,0.00011775,2]
[344541991,1733538664438,-500.0,0.00011775,2]
[344541992,1733538664447,-612.93,0.00011775,2]
[344541993,1733538664458,-500.0,0.00011776,2]
[344541994,1733538664468,-500.0,0.00011776,2]
[344541995,1733538664478,-150.79124037,0.00011776,2]
[344541996,1733538664489,-500.0,0.00011776,2]
[344541997,1733538664498,-500.0,0.00011776,2]
[344541998,1733538664508,-500.0,0.00011776,2]
[344541999,1733538664518,-500.0,0.00011776,2]
[344542000,1733538664528,-500.0,0.00011776,2]
[344542001,1733538664538,-558.99,0.00011776,2]
[344542002,1733538664548,-500.0,0.00011776,2]
[344542003,1733538664557,-641.29,0.00011776,2]
[344542004,1733538664566,-771.41,0.00011776,2]
[344542005,1733538664576,-500.0,0.00011776,2]
[344542006,1733538664585,-520.7,0.00011776,2]
[344542007,1733538664596,-872.9,0.00011776,2]
[344542008,1733538664605,-500.0,0.00011776,2]
[344542009,1733538664615,-500.0,0.00011776,2]
[344542010,1733538664626,-500.0,0.00011776,2]
[344542011,1733538664636,-674.13,0.00011776,2]
[344542012,1733538664646,-662.04,0.00011776,2]
[344542013,1733538664655,-573.99,0.00011776,2]
[344542014,1733538664665,-500.0,0.00011776,2]
[344542015,1733538664675,-500.0,0.00011776,2]
[344542016,1733538664685,-500.0,0.00011776,2]
[344542017,1733538664694,-500.0,0.00011776,2]
[344542018,1733538664704,-500.0,0.00011776,2]
[344542019,1733538664716,-500.0,0.00011776,2]
[344542020,1733538664726,-669.46,0.00011776,2]
[344542021,1733538664736,-569.89,0.00011776,2]
[344542022,1733538664745,-500.0,0.00011776,2]
[344542023,1733538664755,-500.0,0.00011776,2]
[344542024,1733538664764,-500.0,0.00011776,2]
[344542025,1733538664774,-500.0,0.00011776,2]
[344542026,1733538664783,-500.0,0.00011776,2]
[344542027,1733538664793,-608.53,0.00011776,2]
[344542028,1733538664803,-500.0,0.00011776,2]
[344542029,1733538664812,-500.0,0.00011776,2]
[344542030,1733538664822,-500.0,0.00011776,2]
[344542031,1733538664832,-500.0,0.00011776,2]
[344542032,1733538664841,-500.0,0.00011776,2]
[344542033,1733538664851,-500.0,0.00011776,2]
[344542034,1733538664861,-500.0,0.00011776,2]
[344542035,1733538664871,-500.0,0.00011776,2]
[344542036,1733538664880,-178.33749463,0.00011776,2]
[344542037,1733538664891,-500.0,0.00011776,2]
[344542038,1733538664900,-500.0,0.00011776,2]
[344542039,1733538664910,-518.65,0.00011776,2]
[344542040,1733538664920,-500.0,0.00011776,2]
[344542041,1733538664930,-1000.0,0.00011784,2]
[344542042,1733538664939,-1100.0,0.000118,4]
[344542043,1733538664949,-150.0,0.00011851,2]
[344542044,1733538664959,-25948.11328556,0.00011888,2]
[344542045,1733538664968,-150.0,0.00011895,2]
[344542046,1733538664978,-1500.0,0.000119,4]
[344542047,1733538664987,-1046.95,0.00011948,2]
[344542048,1733538664997,-768.15,0.00011948,2]
[344542049,1733538665006,-768.15,0.00011948,2]
[344542050,1733538665017,-509.0,0.00011949,2]
[344542051,1733538665027,-150.0,0.00011966,2]
[344542052,1733538665036,-150.0,0.00011989,2]
[344542053,1733538665046,-150.0,0.00012,2]
[344542054,1733538665055,-10000.0,0.00012,3]
[344542055,1733538665064,-920.34,0.00012048,2]
[344542056,1733538665073,-500.0,0.00012048,2]
[344542057,1733538665083,-500.0,0.00012048,2]
[344542058,1733538665092,-500.0,0.00012048,2]
[344542059,1733538665101,-500.0,0.00012048,2]
[344542060,1733538665111,-500.0,0.00012048,2]
[344542061,1733538665120,-500.0,0.00012048,2]
[344542062,1733538665130,-500.0,0.00012048,2]
[344542063,1733538665139,-500.0,0.00012048,2]
[344542064,1733538665149,-500.0,0.00012048,2]
[344542065,1733538665158,-500.0,0.00012048,2]
[344542066,1733538665168,-500.0,0.00012048,2]
[344542067,1733538665177,-500.0,0.00012048,2]
[344542068,1733538665186,-500.0,0.00012048,2]
[344542069,1733538665196,-535.83,0.00012048,2]
[344542070,1733538665207,-500.0,0.00012048,2]
[344542071,1733538665216,-500.0,0.00012048,2]
[344542072,1733538665226,-500.0,0.00012048,2]
[344542073,1733538665236,-500.0,0.00012048,2]
[344542074,1733538665245,-500.0,0.00012048,2]
[344542075,1733538665255,-500.0,0.00012048,2]
[344542076,1733538665265,-500.0,0.00012048,2]
[344542077,1733538665275,-500.0,0.00012048,2]
[344542078,1733538665284,-500.0,0.00012048,2]
[344542079,1733538665294,-443.06205511,0.00012048,2]
[344542080,1733538665303,-500.0,0.00012048,2]
[344542081,1733538665313,-500.0,0.00012048,2]
[344542082,1733538665323,-698.17,0.00012048,2]
[344542083,1733538665332,-500.0,0.00012048,2]
[344542084,1733538665342,-500.0,0.00012048,2]
[344542085,1733538665351,-500.0,0.00012048,2]
[344542086,1733538665361,-500.0,0.00012048,2]
[344542087,1733538665371,-509.25348751,0.00012048,2]
[344542088,1733538665380,-500.0,0.00012048,2]
[344542089,1733538665390,-1200.0,0.00012048,2]
[344542090,1733538665400,-648.37323152,0.00012048,2]
[344542091,1733538665409,-500.0,0.00012048,2]
[344542092,1733538665419,-500.0,0.00012048,2]
[344542093,1733538665428,-500.0,0.00012048,2]
[344542094,1733538665437,-500.0,0.00012048,2]
[344542095,1733538665447,-500.0,0.00012048,2]
[344542096,1733538665456,-500.0,0.00012048,2]
[344542097,1733538665466,-500.0,0.00012048,2]
[344542098,1733538665476,-710.18,0.00012048,2]
[344542099,1733538665486,-500.0,0.00012048,2]
[344542100,1733538665495,-529.42325518,0.00012048,2]
[344542101,1733538665505,-500.0,0.00012048,2]
[344542102,1733538665515,-500.0,0.00012048,2]
[344542103,1733538665524,-500.0,0.00012048,2]
[344542104,1733538665534,-500.0,0.00012048,2]
[344542105,1733538665544,-500.0,0.00012048,2]
[344542106,1733538665553,-500.0,0.00012048,2]
[344542107,1733538665563,-500.0,0.00012048,2]
[344542108,1733538665572,-500.0,0.00012048,2]
[344542109,1733538665582,-500.0,0.00012048,2]
[344542110,1733538665669,-500.0,0.00012048,2]
[344542111,1733538665679,-500.0,0.00012048,2]
[344542112,1733538665689,-1581.6,0.00012048,2]
[344542113,1733538665699,-500.0,0.00012048,2]
[344542114,1733538665708,-500.0,0.00012048,2]
[344542115,1733538665721,-948.74,0.00012048,2]
[344542116,1733538665730,-614.09,0.00012048,2]
[344542117,1733538665739,-1046.74,0.00012048,2]
[344542118,1733538665749,-506.44,0.00012048,2]
[344542119,1733538665758,-761.38,0.00012048,2]
[344542120,1733538665768,-849.57,0.00012048,2]
[344542121,1733538665777,-500.0,0.00012048,2]
[344542122,1733538665786,-500.0,0.00012048,2]
[344542123,1733538665796,-566.69,0.00012048,2]
[344542124,1733538665806,-1186.12,0.00012048,2]
[344542125,1733538665814,-500.0,0.00012048,2]
[344542126,1733538665823,-500.0,0.00012048,2]
[344542127,1733538665832,-545.01,0.00012048,2]
[344542128,1733538665843,-500.0,0.00012048,2]
[344542129,1733538665852,-500.0,0.00012048,2]
[344542130,1733538665860,-500.0,0.00012048,2]
[344542131,1733538665870,-952.31,0.00012048,2]
[344542132,1733538665879,-500.0,0.00012048,2]
[344542133,1733538665889,-500.0,0.00012048,2]
[344542134,1733538665898,-589.84,0.00012048,2]
[344542135,1733538665907,-529.52,0.00012048,2]
[344542136,1733538665916,-606.23,0.00012048,2]
[344542137,1733538665925,-500.0,0.00012048,2]
[344542138,1733538665935,-500.0,0.00012048,2]
[344542139,1733538665944,-3793.97,0.00012048,2]
[344542140,1733538665954,-544.9,0.00012048,2]
[344542141,1733538665966,-1985.96,0.00012048,2]
[344542142,1733538665982,-500.0,0.00012048,2]
[344542143,1733538665992,-500.0,0.00012048,2]
[344542144,1733538666001,-500.0,0.00012048,2]
[344542145,1733538666010,-500.0,0.00012048,2]
[344542146,1733538666024,-500.0,0.00012048,2]
[344542147,1733538666033,-2261.0,0.00012048,2]
[344542148,1733538666042,-500.0,0.00012048,2]
[344542149,1733538666052,-1000.0,0.00012048,2]
[344542150,1733538666061,-500.0,0.00012048,2]
[344542151,1733538666070,-500.0,0.00012048,2]
[344542152,1733538666079,-500.0,0.00012048,2]
[344542153,1733538666088,-500.0,0.00012048,2]
[344542154,1733538666097,-806.39,0.00012048,2]
[344542155,1733538666106,-500.0,0.00012048,2]
[344542156,1733538666115,-500.0,0.00012048,2]
[344542157,1733538666125,-500.0,0.00012048,2]
[344542158,1733538666134,-500.0,0.00012048,2]
[344542159,1733538666143,-500.0,0.00012048,2]
[344542160,1733538666154,-697.68,0.00012048,2]
[344542161,1733538666163,-811.16,0.00012048,2]
[344542162,1733538666172,-500.0,0.00012048,2]
[344542163,1733538666182,-856.38,0.00012048,2]
[344542164,1733538666191,-935.1,0.00012048,2]
[344542165,1733538666200,-624.77,0.00012048,2]
[344542166,1733538666209,-500.0,0.00012048,2]
[344542167,1733538666221,-1468.23,0.00012048,2]
[344542168,1733538666234,-500.0,0.00012048,2]
[344542169,1733538666243,-500.0,0.00012048,2]
[344542170,1733538666252,-4797.17,0.00012048,2]
[344542171,1733538666262,-1275.33,0.00012048,2]
[344542172,1733538666271,-500.0,0.00012048,2]
[344542173,1733538666280,-1057.06,0.00012048,2]
[344542174,1733538666289,-500.0,0.00012048,2]
[344542175,1733538666298,-507.12,0.00012048,2]
[344542176,1733538666307,-500.0,0.00012048,2]
[344542177,1733538666316,-500.0,0.00012048,2]
[344542178,1733538666326,-500.0,0.00012048,2]
[344542179,1733538666335,-2743.45,0.00012048,2]
[344542180,1733538666344,-500.0,0.00012048,2]
[344542181,1733538666353,-500.0,0.00012048,2]
[344542182,1733538666362,-500.0,0.00012048,2]
[344542183,1733538666371,-500.0,0.00012048,2]
[344542184,1733538666381,-676.45,0.00012048,2]
[344542185,1733538666390,-500.0,0.00012048,2]
[344542186,1733538666399,-500.0,0.00012048,2]
[344542187,1733538666409,-1026.51,0.00012048,2]
[344542188,1733538666418,-500.0,0.00012048,2]
[344542189,1733538666427,-500.0,0.00012048,2]
[344542190,1733538666436,-620.57,0.00012048,2]
[344542191,1733538666446,-1497.18,0.00012048,2]
[344542192,1733538666455,-4753.16,0.00012048,2]
[344542193,1733538666474,-436.10244965,0.00012048,2]
[344542194,1733538666489,-607.28,0.00012048,2]
[344542195,1733538666499,-778.19,0.00012048,2]
[344542196,1733538666508,-500.0,0.00012048,2]
[344542197,1733538666518,-1146.06,0.00012049,2]
[344542198,1733538666528,-766.7,0.00012049,2]
[344542199,1733538666537,-500.0,0.00012049,2]
[344542200,1733538666547,-500.0,0.00012049,2]
[344542201,1733538666557,-500.0,0.00012049,2]
[344542202,1733538666567,-567.01,0.00012049,2]
[344542203,1733538666576,-514.81,0.00012049,2]
[344542204,1733538666586,-500.0,0.00012049,2]
[344542205,1733538666595,-500.0,0.00012049,2]
[344542206,1733538666605,-657.0,0.00012049,2]
[344542207,1733538666614,-899.98,0.00012049,2]
[344542208,1733538666624,-500.0,0.00012049,2]
[344542209,1733538666635,-500.0,0.00012049,2]
[344542210,1733538666645,-790.04,0.00012049,2]
[344542211,1733538666654,-604.46,0.00012049,2]
[344542212,1733538666663,-618.41,0.00012049,2]
[344542213,1733538666672,-500.0,0.00012049,2]
[344542214,1733538666681,-500.0,0.00012049,2]
[344542215,1733538666691,-537.38,0.00012049,2]
[344542216,1733538666699,-500.0,0.00012049,2]
[344542217,1733538666708,-500.0,0.00012049,2]
[344542218,1733538666723,-521.67,0.00012049,2]
[344542219,1733538666732,-607.77,0.00012049,2]
[344542220,1733538666741,-221.01788736,0.00012049,2]
[344542221,1733538666751,-500.0,0.00012049,2]
[344542222,1733538666761,-603.18,0.00012049,2]
[344542223,1733538666770,-500.0,0.00012049,2]
[344542224,1733538666779,-647.48,0.00012049,2]
[344542225,1733538666788,-607.67,0.00012049,2]
[344542226,1733538666797,-691.8,0.00012049,2]
[344542227,1733538666807,-500.0,0.00012049,2]
[344542228,1733538666816,-500.0,0.00012049,2]
[344542229,1733538666826,-197.872004,0.00012049,2]
[344542230,1733538666835,-500.0,0.00012049,2]
[344542231,1733538666844,-500.0,0.00012049,2]
[344542232,1733538666853,-500.0,0.00012049,2]
[344542233,1733538666862,-500.0,0.00012049,2]
[344542234,1733538666871,-728.64,0.00012049,2]
[344542235,1733538666880,-500.0,0.00012049,2]
[344542236,1733538666890,-500.0,0.00012049,2]
[344542237,1733538666899,-500.0,0.00012049,2]
[344542238,1733538666909,-640.13,0.00012049,2]
[344542239,1733538666918,-500.0,0.00012049,2]
[344542240,1733538666927,-500.0,0.00012049,2]
[344542241,1733538666936,-1243.41,0.00012049,2]
[344542242,1733538666945,-500.0,0.00012049,2]
[344542243,1733538666954,-500.0,0.00012049,2]
[344542244,1733538666963,-500.0,0.00012049,2]
[344542245,1733538666977,-500.0,0.00012049,2]
[344542246,1733538666989,-500.0,0.00012049,2]
[344542247,1733538666998,-500.0,0.00012049,2]
[344542248,1733538667008,-535.81,0.00012049,2]
[344542249,1733538667017,-729.39,0.00012049,2]
[344542250,1733538667026,-500.0,0.00012049,2]
[344542251,1733538667035,-500.0,0.00012049,2]
[344542252,1733538667044,-993.22,0.00012049,2]
[344542253,1733538667053,-500.0,0.00012049,2]
[344542254,1733538667062,-559.72,0.00012049,2]
[344542255,1733538667071,-500.0,0.00012049,2]
[344542256,1733538667080,-500.0,0.00012049,2]
[344542257,1733538667089,-500.0,0.00012049,2]
[344542258,1733538667098,-500.0,0.00012049,2]
[344542259,1733538667108,-500.0,0.00012049,2]
[344542260,1733538667118,-500.0,0.00012049,2]
[344542261,1733538667127,-222.48746683,0.00012049,2]
[344542262,1733538667136,-500.0,0.00012049,2]
[344542263,1733538667145,-500.0,0.00012049,2]
[344542264,1733538667155,-500.0,0.00012049,2]
[344542265,1733538667163,-617.62,0.00012049,2]
[344542266,1733538667173,-500.0,0.00012049,2]
[344542267,1733538667182,-500.0,0.00012049,2]
[344542268,1733538667191,-1318.28,0.00012049,2]
[344542269,1733538667200,-500.0,0.00012049,2]
[344542270,1733538667209,-742.57,0.00012049,2]
[344542271,1733538667222,-774.68,0.00012049,2]
[344542272,1733538667231,-500.0,0.00012049,2]
[344542273,1733538667240,-1979.9,0.00012049,2]
[344542274,1733538667249,-500.0,0.00012049,2]
[344542275,1733538667258,-500.0,0.00012049,2]
[344542276,1733538667267,-500.0,0.00012049,2]
[344542277,1733538667276,-500.0,0.00012049,2]
[344542278,1733538667285,-500.0,0.00012049,2]
[344542279,1733538667294,-846.08,0.00012049,2]
[344542280,1733538667303,-500.0,0.00012049,2]
[344542281,1733538667312,-500.0,0.00012049,2]
[344542282,1733538667321,-514.34,0.00012049,2]
[344542283,1733538667329,-500.0,0.00012049,2]
[344542284,1733538667339,-500.0,0.00012049,2]
[344542285,1733538667348,-500.0,0.00012049,2]
[344542286,1733538667356,-550.07,0.00012049,2]
[344542287,1733538667366,-522.22,0.00012049,2]
[344542288,1733538667375,-701.93,0.00012049,2]
[344542289,1733538667384,-500.0,0.00012049,2]
[344542290,1733538667394,-614.5,0.00012049,2]
[344542291,1733538667403,-500.0,0.00012049,2]
[344542292,1733538667412,-1144.35,0.00012049,2]
[344542293,1733538667422,-500.0,0.00012049,2]
[344542294,1733538667431,-500.0,0.00012049,2]
[344542295,1733538667441,-1041.71,0.00012049,2]
[344542296,1733538667450,-820.68,0.00012049,2]
[344542297,1733538667459,-631.36,0.00012049,2]
[344542298,1733538667470,-7329.42,0.00012049,2]
[344542299,1733538667479,-5670.47,0.00012049,2]
[344542300,1733538667489,-490.0,0.00012049,2]
[344542301,1733538667499,-500.0,0.00012049,2]
[344542302,1733538667508,-1820.83,0.00012049,2]
[344542303,1733538667518,-674.3,0.00012049,2]
[344542304,1733538667527,-1395.19,0.00012049,2]
[344542305,1733538667537,-500.0,0.00012049,2]
[344542306,1733538667548,-1929.61,0.00012049,2]
[344542307,1733538667558,-5538.23,0.00012049,2]
[344542308,1733538667567,-1023.74,0.00012049,2]
[344542309,1733538667576,-567.73,0.00012049,2]
[344542310,1733538667586,-1242.16,0.00012049,2]
[344542311,1733538667596,-1210.15,0.00012049,2]
[344542312,1733538667606,-707.46,0.00012049,2]